bitfinex/quotes_BTCUSD_20240827
["timestamp","ask_amount","ask_price","bid_price","bid_amount"]
[1724759690229,0.14635001,62564.0,62563.0,0.22574792]
[1724759690483,0.14635001,62564.0,62563.0,0.31351112]
[1724759690708,0.17139682,62564.0,62563.0,0.31351112]
[1724759690920,0.17139682,62564.0,62563.0,0.47334912]
[1724759691144,0.08919682,62564.0,62563.0,0.47334912]
[1724759691357,0.08819682,62564.0,62563.0,0.44534912]
[1724759691782,0.08769382,62564.0,62563.0,0.45934912]
[1724759691986,0.08769382,62564.0,62563.0,0.79302612]
[1724759692645,0.08769382,62564.0,62563.0,0.77902612]
[1724759692864,0.08719057,62564.0,62563.0,0.77902612]
[1724759693504,0.08719057,62564.0,62563.0,0.76502612]
[1724759693971,0.08719057,62564.0,62563.0,1.11070312]
[1724759694191,0.02595211,62564.0,62563.0,1.11070312]
[1724759695101,0.02595211,62564.0,62563.0,1.43135573]
[1724759696880,0.0009053,62564.0,62563.0,1.43135573]
[1724759698067,0.0009053,62564.0,62563.0,1.41735573]
[1724759698301,0.0009053,62564.0,62563.0,1.41935573]
[1724759698780,0.0009053,62564.0,62563.0,1.43335573]
[1724759700183,0.02595095,62564.0,62563.0,1.43335573]
[1724759701820,0.02595095,62564.0,62563.0,1.11270312]
[1724759702956,0.00065339,62564.0,62563.0,1.11270312]
[1724759704781,0.00065339,62564.0,62563.0,1.14017677]
[1724759705970,0.00065339,62564.0,62563.0,1.53802938]
[1724759706213,0.00065339,62564.0,62563.0,1.53885238]
[1724759706447,0.00065339,62564.0,62563.0,1.96534517]
[1724759706670,0.00065339,62564.0,62563.0,1.96532082]
[1724759707575,0.00065339,62564.0,62563.0,2.02982082]
[1724759708282,0.00065339,62564.0,62563.0,2.34949782]
[1724759708536,0.00065339,62564.0,62563.0,2.32149782]
[1724759708759,0.00065339,62564.0,62563.0,2.33549782]
[1724759709002,0.00065339,62564.0,62563.0,2.34949782]
[1724759709223,0.00065339,62564.0,62563.0,2.33549782]
[1724759709688,0.00065339,62564.0,62563.0,2.33549654]
[1724759709907,0.00046102,62564.0,62563.0,2.33549654]
[1724759710156,0.00046102,62564.0,62563.0,2.32149654]
[1724759710378,0.00046102,62564.0,62563.0,2.33549654]
[1724759710887,0.00046102,62564.0,62563.0,2.34966494]
[1724759711346,0.00046102,62564.0,62563.0,2.37766081]
[1724759711774,0.00046102,62564.0,62563.0,2.34966081]
[1724759711997,0.00046102,62564.0,62563.0,2.37766081]
[1724759712682,0.00046102,62564.0,62563.0,2.44944896]
[1724759714386,0.00046102,62564.0,62563.0,2.08081753]
[1724759714621,0.00046102,62564.0,62563.0,2.09481753]
[1724759714812,0.00046102,62564.0,62563.0,2.45939119]
[1724759715027,0.00046102,62564.0,62563.0,2.47339119]
[1724759715232,0.00046102,62564.0,62563.0,2.45939119]
[1724759715648,0.00046102,62564.0,62563.0,2.37864031]
[1724759716111,0.00046102,62564.0,62563.0,2.51028482]
[1724759716533,0.00046102,62564.0,62563.0,2.52428482]
[1724759716781,0.0009053,62583.0,62582.0,0.47937]
[1724759717002,0.0009053,62583.0,62582.0,1.2069069]
[1724759717218,0.0009053,62583.0,62582.0,0.98086809]
[1724759717440,0.1428053,62583.0,62582.0,0.2475532]
[1724759717648,0.1428053,62583.0,62582.0,0.65580792]
[1724759717872,0.1428053,62583.0,62582.0,0.33622792]
[1724759718106,0.1428053,62583.0,62582.0,0.66880792]
[1724759718548,0.1428053,62583.0,62582.0,0.67980792]
[1724759718794,0.1428053,62583.0,62582.0,0.66880792]
[1724759719595,0.1428053,62583.0,62582.0,0.65580792]
[1724759719802,0.1428053,62583.0,62582.0,0.68180792]
[1724759720003,0.1428053,62583.0,62582.0,0.59404472]
[1724759720669,0.16784599,62583.0,62582.0,0.59404472]
[1724759722168,0.16784599,62583.0,62582.0,0.026]
[1724759722169,1.39033838,62583.0,62582.0,0.026]
[1724759722539,1.0386314,62583.0,62582.0,0.026]
[1724759722716,0.96678299,62583.0,62582.0,0.026]
[1724759723055,0.96678299,62583.0,62571.0,0.319636]
[1724759723056,0.159801,62578.0,62571.0,0.319636]
[1724759723281,0.319594,62580.0,62572.0,0.06712435]
[1724759723282,0.303203,62577.0,62572.0,0.06712435]
[1724759723528,0.159803,62577.0,62572.0,0.06712435]
[1724759723753,0.159803,62577.0,62575.0,0.00019226]
[1724759723754,0.0775,62576.0,62575.0,0.00019226]
[1724759723964,0.0775,62576.0,62575.0,0.05486912]
[1724759724186,0.16604383,62576.0,62575.0,0.05486912]
[1724759724403,0.141,62576.0,62575.0,0.05486912]
[1724759726184,0.141,62576.0,62575.0,0.06586912]
[1724759726399,0.141,62576.0,62575.0,0.06386912]
[1724759726816,0.141,62576.0,62575.0,0.07486912]
[1724759727048,0.300805,62576.0,62575.0,0.07486912]
[1724759727745,0.32584983,62576.0,62575.0,0.07486912]
[1724759728177,0.32584983,62576.0,62575.0,0.02019226]
[1724759728390,0.32584983,62576.0,62575.0,0.02]
[1724759728604,0.32584983,62576.0,62575.0,0.02019226]
[1724759729044,0.16604483,62576.0,62575.0,0.00019226]
[1724759729480,0.16604483,62576.0,62575.0,0.05837567]
[1724759729481,0.32584983,62576.0,62575.0,0.05837567]
[1724759729680,0.16604483,62576.0,62575.0,0.05856793]
[1724759730240,0.16604483,62576.0,62575.0,0.05837567]
[1724759730455,0.16604483,62576.0,62575.0,0.05856793]
[1724759730675,0.16604483,62576.0,62575.0,0.05837567]
[1724759730816,0.16695013,62576.0,62575.0,0.05837567]
[1724759731753,0.16695013,62576.0,62575.0,0.05856793]
[1724759732205,0.16695013,62576.0,62575.0,0.05837567]
[1724759732421,0.16695013,62576.0,62575.0,0.05856793]
[1724759732862,0.16695013,62576.0,62575.0,0.05837567]
[1724759733968,0.16695013,62576.0,62575.0,0.05856793]
[1724759734184,0.1419053,62576.0,62575.0,0.05837567]
[1724759734605,0.1419053,62576.0,62575.0,0.05856793]
[1724759734808,0.1419053,62576.0,62575.0,0.05837567]
[1724759735038,0.1419053,62576.0,62575.0,0.05856793]
[1724759736399,0.1419053,62576.0,62575.0,0.05837567]
[1724759736606,0.1419053,62576.0,62575.0,0.05856793]
[1724759736813,0.1419053,62576.0,62575.0,0.05837567]
[1724759737013,0.1419053,62576.0,62575.0,0.05856793]
[1724759737227,0.1419053,62576.0,62575.0,0.05837567]
[1724759737443,0.16694883,62576.0,62575.0,0.05837567]
[1724759737650,0.16694883,62576.0,62575.0,0.05856793]
[1724759737862,0.16694883,62576.0,62575.0,0.05837567]
[1724759740491,1.33351684,62576.0,62575.0,0.02019226]
[1724759740910,1.28558683,62576.0,62575.0,0.02019226]
[1724759741602,1.33351015,62576.0,62575.0,0.02019226]
[1724759742014,1.28558683,62576.0,62575.0,0.02019226]
[1724759742224,0.96597583,62576.0,62575.0,0.02019226]
[1724759744188,0.96597583,62576.0,62575.0,0.02]
[1724759744593,0.96597583,62576.0,62575.0,0.02019226]
[1724759747591,0.96597583,62576.0,62575.0,0.02]
[1724759748005,0.96597583,62576.0,62575.0,0.02019226]
[1724759749268,0.9409323,62576.0,62575.0,0.02019226]
[1724759749690,0.9409323,62576.0,62575.0,0.02]
[1724759750101,0.9409323,62576.0,62575.0,0.02019226]
[1724759750781,0.6213213,62576.0,62575.0,0.02019226]
[1724759750996,0.6213213,62576.0,62575.0,0.02]
[1724759751210,0.6213213,62576.0,62575.0,0.02019226]
[1724759751847,0.64636598,62576.0,62575.0,0.02019226]
[1724759753134,0.64636598,62576.0,62575.0,0.02]
[1724759753351,0.64636598,62576.0,62575.0,0.02019226]
[1724759754207,0.6213213,62576.0,62575.0,0.02019226]
[1724759755507,0.6213213,62576.0,62575.0,0.02]
[1724759755729,0.6213213,62576.0,62575.0,0.02019226]
[1724759757688,0.64636596,62576.0,62575.0,0.02019226]
[1724759758110,0.64636596,62576.0,62575.0,0.02]
[1724759758315,0.64636596,62576.0,62575.0,0.02019226]
[1724759762261,0.96597696,62576.0,62575.0,0.02019226]
[1724759763569,1.01389538,62576.0,62575.0,0.02019226]
[1724759764008,1.11876951,62576.0,62575.0,0.02]
[1724759764219,1.14164327,62576.0,62575.0,0.02]
[1724759764433,1.46125427,62576.0,62575.0,0.02]
[1724759764657,1.36541743,62576.0,62575.0,0.02]
[1724759765081,1.36541743,62576.0,62575.0,0.009]
[1724759765307,0.94504,62575.0,62574.0,0.00019237]
[1724759765534,1.13772119,62575.0,62574.0,0.00019237]
[1724759765792,1.48238418,62575.0,62574.0,0.00019237]
[1724759766000,1.48238418,62575.0,62574.0,0.00038463]
[1724759766216,1.48238418,62575.0,62574.0,0.00019237]
[1724759766625,1.48238418,62575.0,62574.0,0.00919237]
[1724759767901,1.48238418,62575.0,62574.0,0.02019237]
[1724759771153,1.64130227,62575.0,62574.0,0.02019237]
[1724759772035,1.64130227,62575.0,62574.0,0.00919237]
[1724759773115,1.64130227,62575.0,62574.0,0.00019237]
[1724759773640,1.74130227,62575.0,62574.0,0.001]
[1724759775206,2.03587128,62575.0,62574.0,0.001]
[1724759775856,1.71625528,62575.0,62574.0,0.001]
[1724759776508,1.87695319,62575.0,62574.0,0.001]
[1724759778069,1.55733719,62575.0,62574.0,0.001]
[1724759778512,1.58238487,62575.0,62574.0,0.001]
[1724759779399,1.90200087,62575.0,62574.0,0.001]
[1724759780118,1.58238487,62575.0,62574.0,0.00119237]
[1724759780796,1.90200087,62575.0,62574.0,0.00119237]
[1724759781497,2.06091896,62575.0,62574.0,0.00119237]
[1724759782176,2.06182426,62575.0,62574.0,0.00119237]
[1724759784920,2.07854228,62575.0,62574.0,0.00119237]
[1724759788605,2.77854228,62575.0,62574.0,0.00119237]
[1724759791436,2.77854228,62575.0,62574.0,0.001]
[1724759792548,2.80854228,62575.0,62574.0,0.001]
[1724759794944,3.12815828,62575.0,62574.0,0.001]
[1724759796214,3.12996602,62575.0,62574.0,0.001]
[1724759796865,3.14498621,62575.0,62574.0,0.001]
[1724759797072,3.12996602,62575.0,62574.0,0.001]
[1724759797277,1.438501,62565.0,62564.0,0.000823]
[1724759797524,2.02375749,62565.0,62564.0,0.000823]
[1724759797728,2.02376383,62565.0,62564.0,0.000823]
[1724759797936,1.87993082,62565.0,62564.0,0.000823]
[1724759798194,2.22465091,62565.0,62564.0,0.000823]
[1724759798455,2.43198629,62565.0,62564.0,0.000823]
[1724759798858,2.28834432,62565.0,62564.0,0.000823]
[1724759801069,3.14866464,62565.0,62564.0,0.001823]
[1724759801707,3.00506234,62565.0,62564.0,0.001823]
[1724759802173,3.1486589,62565.0,62564.0,0.001823]
[1724759802388,3.00506234,62565.0,62564.0,0.001823]
[1724759802597,3.14863553,62565.0,62564.0,0.001823]
[1724759802814,3.15063553,62565.0,62564.0,0.001823]
[1724759803024,3.14863553,62565.0,62564.0,0.000823]
[1724759803283,3.14963553,62565.0,62564.0,0.000823]
[1724759803494,3.00906234,62565.0,62564.0,0.000823]
[1724759803708,2.62570193,62565.0,62564.0,0.000823]
[1724759804121,1.92570193,62565.0,62564.0,0.000823]
[1724759805704,2.06927512,62565.0,62564.0,0.000823]
[1724759806799,2.62570193,62565.0,62564.0,0.000823]
[1724759807028,2.79367302,62565.0,62564.0,0.000823]
[1724759813841,2.09367302,62565.0,62564.0,0.000823]
[1724759814701,2.41334002,62565.0,62564.0,0.000823]
[1724759815676,2.57493574,62565.0,62564.0,0.000823]
[1724759816485,2.41334002,62565.0,62564.0,0.000823]
[1724759816887,3.11434002,62565.0,62564.0,0.000823]
[1724759817089,3.11514776,62565.0,62564.0,0.000823]
[1724759819395,3.11605306,62565.0,62564.0,0.000823]
[1724759819610,3.13905306,62565.0,62564.0,0.000823]
[1724759820027,3.13805306,62565.0,62564.0,0.000823]
[1724759820238,3.14205306,62565.0,62564.0,0.001823]
[1724759820451,3.15105306,62565.0,62564.0,0.002823]
[1724759820872,3.15105306,62565.0,62564.0,0.000823]
[1724759820873,3.13505306,62565.0,62564.0,0.000823]
[1724759821304,2.55272476,62565.0,62564.0,0.001823]
[1724759821518,2.40331702,62565.0,62564.0,0.083723]
[1724759821743,2.07459702,62565.0,62564.0,0.083723]
[1724759821952,2.21825625,62565.0,62564.0,0.083723]
[1724759822160,2.07459702,62565.0,62564.0,0.083723]
[1724759822376,2.08859702,62565.0,62564.0,0.084723]
[1724759822599,1.38859702,62565.0,62564.0,0.084723]
[1724759822809,1.38859702,62565.0,62564.0,0.083723]
[1724759822810,1.37459702,62565.0,62564.0,0.083723]
[1724759823014,1.36759702,62565.0,62564.0,0.082723]
[1724759823233,1.37859702,62565.0,62564.0,0.083723]
[1724759823462,1.38459702,62565.0,62564.0,0.084723]
[1724759823904,1.37859702,62565.0,62564.0,0.083723]
[1724759824328,1.35354393,62565.0,62564.0,0.083723]
[1724759824744,1.35354393,62565.0,62564.0,0.084723]
[1724759824745,1.35954393,62565.0,62564.0,0.084723]
[1724759824952,1.35954393,62565.0,62558.0,0.009053]
[1724759824953,0.54356647,62565.0,62559.0,0.0801]
[1724759825162,0.479547,62559.0,62558.0,0.009053]
[1724759825376,1.00629047,62559.0,62558.0,0.009053]
[1724759825592,1.64568647,62559.0,62558.0,0.009053]
[1724759826007,2.34568647,62559.0,62558.0,0.009053]
[1724759826206,2.35068647,62559.0,62558.0,0.009053]
[1724759826419,2.50960456,62559.0,62558.0,0.009053]
[1724759827255,2.51160456,62559.0,62558.0,0.009053]
[1724759828309,2.83130256,62559.0,62558.0,0.009053]
[1724759829280,2.8967103,62559.0,62558.0,0.009053]
[1724759830317,3.1372494,62559.0,62558.0,0.009053]
[1724759830527,2.9756103,62559.0,62558.0,0.009053]
[1724759830741,3.13733661,62559.0,62558.0,0.009053]
[1724759830952,2.9756103,62559.0,62558.0,0.009053]
[1724759832834,2.9846633,62559.0,62558.0,0.009053]
[1724759836835,3.20425012,62559.0,62558.0,0.009053]
[1724759837954,3.12354238,62559.0,62558.0,0.009053]
[1724759838197,3.05994238,62559.0,62558.0,0.009053]
[1724759842212,3.14214238,62559.0,62558.0,0.009053]
[1724759842468,3.20764238,62559.0,62558.0,0.009053]
[1724759843148,3.20764238,62559.0,62557.0,0.00121932]
[1724759843149,3.04779338,62559.0,62557.0,0.00121932]
[1724759843361,3.14590418,62558.0,62557.0,0.00121932]
[1724759843587,3.21140418,62558.0,62557.0,0.00121932]
[1724759843828,3.29360418,62558.0,62557.0,0.00121932]
[1724759844054,3.3333222,62558.0,62557.0,0.00121932]
[1724759844523,3.3333222,62558.0,62547.0,0.009053]
[1724759844524,2.17557174,62552.0,62547.0,0.009053]
[1724759844759,3.3849151,62552.0,62547.0,0.009053]
[1724759846324,3.3027151,62552.0,62547.0,0.009053]
[1724759846538,3.3027151,62552.0,62551.0,0.0014]
[1724759846539,3.3097151,62552.0,62551.0,0.0014]
[1724759846963,3.46163319,62552.0,62551.0,0.0004]
[1724759847197,3.47563319,62552.0,62551.0,0.0004]
[1724759847441,3.47163319,62552.0,62551.0,0.0014]
[1724759847663,3.48563319,62552.0,62551.0,0.0014]
[1724759848373,3.16409245,62552.0,62551.0,0.0014]
[1724759848591,2.56202634,62552.0,62551.0,0.0014]
[1724759848875,2.40035454,62552.0,62551.0,0.0788]
[1724759850716,1.70035454,62552.0,62551.0,0.0788]
[1724759850938,1.67035454,62552.0,62551.0,0.0788]
[1724759851158,1.82927263,62552.0,62551.0,0.0788]
[1724759851836,1.67035454,62552.0,62551.0,0.0788]
[1724759852052,1.81406575,62552.0,62551.0,0.1417]
[1724759852290,1.67035454,62552.0,62551.0,0.1417]
[1724759852526,1.67016216,62552.0,62551.0,0.1417]
[1724759852751,1.35042916,62552.0,62551.0,0.1417]
[1724759853406,1.4847186,62552.0,62551.0,0.1407]
[1724759853613,1.4957186,62552.0,62551.0,0.1407]
[1724759853832,1.35142916,62552.0,62551.0,0.1407]
[1724759854072,1.33742916,62552.0,62551.0,0.1407]
[1724759854503,1.34642916,62552.0,62551.0,0.1407]
[1724759854942,1.33542916,62552.0,62551.0,0.1407]
[1724759855433,1.33542916,62552.0,62551.0,0.1417]
[1724759855434,1.4982186,62552.0,62551.0,0.1417]
[1724759857195,1.4982186,62552.0,62551.0,0.142523]
[1724759857883,1.4991239,62552.0,62551.0,0.142523]
[1724759859961,1.8188569,62552.0,62551.0,0.002223]
[1724759860176,1.84391493,62552.0,62551.0,0.002223]
[1724759861577,2.00562863,62552.0,62551.0,0.002223]
[1724759861810,1.84391493,62552.0,62551.0,0.002223]
[1724759863320,2.55214249,62552.0,62551.0,0.002223]
[1724759864917,3.25214249,62552.0,62551.0,0.002223]
[1724759870082,2.93240949,62552.0,62551.0,0.002223]
[1724759870529,2.23240949,62552.0,62551.0,0.002223]
[1724759870744,2.55214249,62552.0,62551.0,0.002223]
[1724759870950,3.25214249,62552.0,62551.0,0.002223]
[1724759871374,2.93240949,62552.0,62551.0,0.002223]
[1724759871556,2.85540949,62552.0,62551.0,0.002223]
[1724759874597,2.83035146,62552.0,62551.0,0.002223]
[1724759876091,2.85541199,62552.0,62551.0,0.002223]
[1724759877168,3.17514499,62552.0,62551.0,0.002223]
[1724759877380,2.85541199,62552.0,62551.0,0.002223]
[1724759877593,2.15541199,62552.0,62551.0,0.002223]
[1724759877814,2.21951799,62552.0,62551.0,0.002223]
[1724759880243,2.08779755,62552.0,62551.0,0.002223]
[1724759880688,2.78779755,62552.0,62551.0,0.002223]
[1724759880873,2.86789755,62552.0,62551.0,0.002223]
[1724759881356,3.21063055,62552.0,62551.0,0.002223]
[1724759881781,3.4615962,62552.0,62551.0,0.002223]
[1724759881997,1.91322112,62548.0,62547.0,0.00113162]
[1724759882256,2.1015166,62548.0,62547.0,0.00113162]
[1724759882477,2.2015166,62548.0,62547.0,0.00113162]
[1724759882689,2.21823462,62548.0,62547.0,0.00113162]
[1724759882910,2.28405668,62548.0,62547.0,0.00113162]
[1724759883357,2.28605668,62548.0,62547.0,0.00113162]
[1724759883580,2.99005668,62548.0,62547.0,0.00113162]
[1724759884515,2.98605668,62548.0,62547.0,0.00113162]
[1724759885457,2.99805668,62548.0,62547.0,0.00113162]
[1724759885673,2.91795668,62548.0,62547.0,0.00113162]
[1724759885941,2.91795668,62548.0,62537.0,0.009053]
[1724759885942,0.00180774,62544.0,62537.0,0.009053]
[1724759886180,1.63788629,62538.0,62537.0,0.009053]
[1724759886605,1.63788629,62538.0,62530.0,0.0614]
[1724759886606,1.23908212,62533.0,62525.0,0.0647]
[1724759886837,1.44945074,62533.0,62525.0,0.0647]
[1724759887058,1.92819983,62533.0,62525.0,0.0647]
[1724759887317,2.07199171,62533.0,62525.0,0.0647]
[1724759888168,1.98412533,62533.0,62525.0,0.0647]
[1724759888823,1.98812533,62533.0,62525.0,0.0647]
[1724759889055,1.98812533,62533.0,62525.0,0.1421]
[1724759889286,2.68812533,62533.0,62525.0,0.1421]
[1724759889782,2.68712533,62533.0,62525.0,0.1421]
[1724759890001,2.71619133,62533.0,62525.0,0.1421]
[1724759890217,2.56939945,62533.0,62525.0,0.1421]
[1724759890861,2.57539945,62533.0,62525.0,0.1421]
[1724759891109,2.65179945,62533.0,62525.0,0.1421]
[1724759891339,2.65099171,62533.0,62525.0,0.1421]
[1724759891561,2.71699945,62533.0,62525.0,0.1421]
[1724759892451,2.71699945,62533.0,62511.0,0.0004]
[1724759892452,3.05983045,62533.0,62532.0,0.0203125]
[1724759893319,3.05583045,62533.0,62532.0,0.0203125]
[1724759893818,3.06183045,62533.0,62532.0,0.0203125]
[1724759894042,3.07583045,62533.0,62532.0,0.0203125]
[1724759894931,3.06383045,62533.0,62532.0,0.00380859]
[1724759895152,0.03180774,62522.0,62512.0,0.1428]
[1724759895371,0.479899,62513.0,62512.0,0.61955426]
[1724759895602,1.23269179,62513.0,62512.0,0.1428]
[1724759895835,1.40387819,62513.0,62512.0,0.1428]
[1724759896059,1.42895022,62513.0,62512.0,0.1428]
[1724759896314,1.40387819,62513.0,62512.0,0.1428]
[1724759897227,1.40387819,62513.0,62511.0,0.0004]
[1724759897228,1.119783,62512.0,62511.0,0.0004]
[1724759897468,1.81007174,62512.0,62511.0,0.0004]
[1724759898119,2.52678976,62512.0,62511.0,0.0004]
[1724759898355,2.47984056,62512.0,62511.0,0.0004]
[1724759898607,2.57551649,62512.0,62511.0,0.0004]
[1724759898858,2.55251649,62512.0,62511.0,0.0004]
[1724759899109,2.44212893,62512.0,62511.0,0.144]
[1724759899326,2.07556613,62512.0,62511.0,0.144]
[1724759899771,1.37556613,62512.0,62511.0,0.144]
[1724759900298,1.52507265,62512.0,62511.0,0.144]
[1724759900827,2.22507265,62512.0,62511.0,0.144]
[1724759901746,1.90513465,62512.0,62511.0,0.144]
[1724759901978,1.58519665,62512.0,62511.0,0.144]
[1724759902438,1.90513465,62512.0,62511.0,0.144]
[1724759903339,1.58519665,62512.0,62511.0,0.144]
[1724759904028,1.90513465,62512.0,62511.0,0.144]
[1724759904714,1.20513465,62512.0,62511.0,0.144]
[1724759905200,1.03055378,62512.0,62511.0,0.144]
[1724759907482,1.03036135,62512.0,62511.0,0.144]
[1724759907717,1.73036135,62512.0,62511.0,0.144]
[1724759908439,1.75543405,62512.0,62511.0,0.144]
[1724759909367,1.75543405,62512.0,62511.0,0.144823]
[1724759909589,1.91435214,62512.0,62511.0,0.144823]
[1724759909813,0.25578148,62512.0,62511.0,0.144823]
[1724759910060,0.04279072,62512.0,62511.0,0.144823]
[1724759911049,0.20275972,62512.0,62511.0,0.144823]
[1724759911785,0.20275972,62512.0,62511.0,0.94468]
[1724759911786,0.0260727,62512.0,62511.0,0.94468]
[1724759912025,0.04869721,62531.0,62511.0,0.94468]
[1724759912026,0.47675426,62530.0,62521.0,0.0826]
[1724759912269,0.1112638,62529.0,62525.0,0.0801]
[1724759912506,0.1112638,62529.0,62526.0,0.0034]
[1724759912748,0.0009053,62531.0,62527.0,0.0801]
[1724759912976,0.0009053,62531.0,62528.0,0.0034]
[1724759913222,0.0009053,62531.0,62529.0,0.0801]
[1724759913707,0.0009053,62531.0,62530.0,0.0657]
[1724759913941,0.0009053,62531.0,62530.0,0.1433]
[1724759914092,0.0009053,62531.0,62530.0,0.303223]
[1724759914669,0.0009053,62531.0,62530.0,0.623069]
[1724759915126,0.0009053,62531.0,62530.0,0.942915]
[1724759915340,0.0009053,62531.0,62530.0,0.623069]
[1724759915552,0.0019053,62531.0,62530.0,0.74064021]
[1724759915984,0.0029053,62531.0,62530.0,0.74364021]
[1724759916432,0.0029053,62531.0,62530.0,0.627069]
[1724759919551,0.0029053,62531.0,62530.0,0.946915]
[1724759925079,0.0019053,62531.0,62530.0,1.1038087]
[1724759925307,0.0009053,62531.0,62530.0,1.1028087]
[1724759925531,0.0029053,62531.0,62530.0,1.55691328]
[1724759926005,0.0019053,62531.0,62530.0,1.55491328]
[1724759926223,0.0029053,62531.0,62530.0,1.55691328]
[1724759926688,0.0029053,62531.0,62530.0,1.57991328]
[1724759926901,0.0019053,62531.0,62530.0,1.57791328]
[1724759927178,0.0029053,62531.0,62530.0,1.57991328]
[1724759927414,0.0019053,62531.0,62530.0,1.57991328]
[1724759927627,0.0029053,62531.0,62530.0,1.58891328]
[1724759930669,0.02337475,62542.0,62541.0,0.479685]
[1724759930894,0.02337475,62542.0,62541.0,0.625085]
[1724759931865,0.02437475,62542.0,62541.0,0.635085]
[1724759932082,0.02437475,62542.0,62541.0,0.72104271]
[1724759932332,0.02537475,62542.0,62541.0,0.72904271]
[1724759932555,0.02537475,62542.0,62541.0,1.04883271]
[1724759934385,0.002,62542.0,62541.0,1.04883271]
[1724759934858,0.002,62542.0,62541.0,0.72904271]
[1724759935985,0.3206433,62552.0,62551.0,0.838123]
[1724759936207,0.5805093,62552.0,62551.0,0.838123]
[1724759937295,0.5835093,62552.0,62551.0,0.838123]
[1724759937718,0.60856481,62552.0,62551.0,0.838123]
[1724759938141,0.60556481,62552.0,62551.0,0.838123]
[1724759938566,0.60556481,62552.0,62551.0,0.841123]
[1724759938851,0.60556481,62552.0,62551.0,0.846123]
[1724759939502,0.28582681,62552.0,62551.0,0.846123]
[1724759939685,0.02596081,62552.0,62551.0,0.846123]
[1724759940862,0.02596081,62552.0,62551.0,0.83585712]
[1724759942368,0.02596081,62552.0,62551.0,0.99572612]
[1724759942834,0.02596081,62552.0,62551.0,0.83585712]
[1724759943064,1.42981919,62552.0,62551.0,0.83585712]
[1724759943502,1.52981919,62552.0,62551.0,0.83585712]
[1724759943935,1.52981919,62552.0,62551.0,0.83085712]
[1724759944364,1.49956571,62552.0,62551.0,0.83085712]
[1724759944580,1.49956571,62552.0,62551.0,0.82785712]
[1724759945006,1.50356571,62552.0,62551.0,0.82785712]
[1724759946949,1.49956571,62552.0,62551.0,0.82785712]
[1724759947371,1.50156571,62552.0,62551.0,0.82785712]
[1724759948017,1.50756571,62552.0,62551.0,0.82885712]
[1724759948705,1.51156571,62552.0,62551.0,0.82885712]
[1724759948931,1.51156571,62552.0,62551.0,0.82968012]
[1724759949620,1.5113733,62552.0,62551.0,0.82968012]
[1724759956357,1.58302,62552.0,62551.0,0.82968012]
[1724759957127,1.5113733,62552.0,62551.0,0.82968012]
[1724759957334,1.63078446,62552.0,62551.0,0.82968012]
[1724759957807,1.60721933,62552.0,62551.0,0.82968012]
[1724759958298,1.5113733,62552.0,62551.0,0.82968012]
[1724759959340,1.63078446,62552.0,62551.0,0.82968012]
[1724759959557,1.5113733,62552.0,62551.0,0.82968012]
[1724759962587,2.2113733,62552.0,62551.0,0.82968012]
[1724759967869,2.35522133,62552.0,62551.0,0.82968012]
[1724759968310,2.2113733,62552.0,62551.0,0.82968012]
[1724759972203,2.29920418,62552.0,62551.0,0.82968012]
[1724759973331,2.77785527,62552.0,62551.0,0.82968012]
[1724759975892,2.29920418,62552.0,62551.0,0.82968012]
[1724759976317,1.59920418,62552.0,62551.0,0.82968012]
[1724759976756,1.5113733,62552.0,62551.0,0.82968012]
[1724759977896,1.4299733,62552.0,62551.0,0.82968012]
[1724759978788,1.4257733,62552.0,62551.0,0.82968012]
[1724759979021,1.05699454,62552.0,62551.0,0.90848012]
[1724759979261,0.9371004,62552.0,62551.0,0.90848012]
[1724759979481,0.91204489,62552.0,62551.0,0.90848012]
[1724759980149,0.90204489,62552.0,62551.0,0.90748012]
[1724759980366,0.90004489,62552.0,62551.0,0.91048012]
[1724759980786,0.90004489,62552.0,62551.0,0.91548012]
[1724759981459,0.99596929,62552.0,62551.0,0.91548012]
[1724759982759,0.99598958,62552.0,62551.0,0.91548012]
[1724759983451,1.02104772,62552.0,62551.0,0.91548012]
[1724759987654,1.8799663,62552.0,62551.0,0.83668012]
[1724759987890,1.71099113,62552.0,62551.0,0.83668012]
[1724759988566,1.71099113,62552.0,62551.0,0.83168012]
[1724759988776,1.56294867,62552.0,62551.0,0.83168012]
[1724759989678,1.56294867,62552.0,62551.0,0.82868012]
[1724759989894,1.56994867,62552.0,62551.0,0.82968012]
[1724759990119,1.57894867,62552.0,62551.0,0.83068012]
[1724759990972,1.56294867,62552.0,62551.0,0.82868012]
[1724759991193,1.56294867,62552.0,62551.0,0.82968012]
[1724759992059,1.57894867,62552.0,62551.0,0.83068012]
[1724759993658,1.57875626,62552.0,62551.0,0.83068012]
[1724759994967,1.49092538,62552.0,62551.0,0.83068012]
[1724759995620,1.63491985,62552.0,62551.0,0.83068012]
[1724759995849,1.63491985,62552.0,62551.0,0.90818012]
[1724759995850,0.59611948,62552.0,62551.0,0.90818012]
[1724759996123,0.59611948,62552.0,62551.0,0.97438012]
[1724759996124,0.11652048,62552.0,62551.0,0.97438012]
[1724759996344,0.06451161,62552.0,62551.0,0.97438012]
[1724759996564,0.01652048,62552.0,62551.0,0.97438012]
[1724759996776,0.17638648,62552.0,62551.0,0.97438012]
[1724759996993,0.16938648,62552.0,62551.0,0.97338012]
[1724759997206,0.16038648,62552.0,62551.0,0.97238012]
[1724759997426,0.16038648,62552.0,62551.0,0.97538012]
[1724759997859,0.16038648,62552.0,62551.0,0.97838012]
[1724759998500,0.16038648,62552.0,62551.0,1.10098912]
[1724759998710,0.16038648,62552.0,62551.0,1.09798912]
[1724760000331,0.47978948,62552.0,62551.0,1.09798912]
[1724760000764,0.79952248,62552.0,62551.0,0.91418012]
[1724760000982,1.54325044,62552.0,62551.0,0.83668012]
[1724760001200,1.44728636,62552.0,62551.0,0.83668012]
[1724760001415,1.03972248,62552.0,62551.0,0.83668012]
[1724760001849,1.65137005,62552.0,62551.0,0.83668012]
[1724760002057,2.43920093,62552.0,62551.0,0.83168012]
[1724760002283,2.41414435,62552.0,62551.0,0.83168012]
[1724760002506,2.41414435,62552.0,62551.0,0.82868012]
[1724760002507,2.73587735,62552.0,62551.0,0.82868012]
[1724760002936,2.73887735,62552.0,62551.0,0.82868012]
[1724760003157,2.73837735,62552.0,62551.0,0.82868012]
[1724760003643,2.90524889,62552.0,62551.0,0.82868012]
[1724760003867,2.89724889,62552.0,62551.0,0.82868012]
[1724760004090,2.86719138,62552.0,62551.0,0.82868012]
[1724760004310,2.87419138,62552.0,62551.0,0.82968012]
[1724760004546,2.87619138,62552.0,62551.0,0.82968012]
[1724760004776,3.0379685,62552.0,62551.0,0.82968012]
[1724760005016,2.3396725,62552.0,62551.0,0.82968012]